bitfinex/quotes_SOLUSD_20241117
["timestamp","ask_amount","ask_price","bid_price","bid_amount"]
[1731833811782,23.776884,238.67,238.63,6.4552547]
[1731833812187,1.676,238.66,238.63,6.4552547]
[1731833812779,23.776884,238.65,238.63,6.4552547]
[1731833813197,23.776884,238.65,238.63,3.9564547]
[1731833813698,23.776884,238.65,238.63,1.3263547]
[1731833813897,23.776884,238.65,238.63,5.47e-05]
[1731833814279,1.92708,238.64,238.61,15.11156768]
[1731833814593,23.776884,238.63,238.61,15.11156768]
[1731833815189,23.776884,238.63,238.61,12.92546768]
[1731833815491,23.776884,238.63,238.61,8.74066768]
[1731833815692,23.776884,238.63,238.61,8.39196768]
[1731833815896,23.776884,238.63,238.61,8.04326768]
[1731833816211,23.776884,238.63,238.61,7.83416768]
[1731833816212,0.25098,238.62,238.61,7.83416768]
[1731833817100,0.25098,238.62,238.61,6.768e-05]
[1731833817487,25.453184,238.62,238.61,6.768e-05]
[1731833817987,55.453184,238.62,238.61,6.768e-05]
[1731833818690,55.704164,238.62,238.61,6.768e-05]
[1731833819089,55.453184,238.62,238.61,6.768e-05]
[1731833819295,55.704164,238.62,238.61,6.768e-05]
[1731833820304,31.6763,238.62,238.61,6.768e-05]
[1731833820486,30.0,238.62,238.61,6.768e-05]
[1731833820685,4.1886,238.74,238.65,159.3]
[1731833820889,4.1886,238.74,238.61,6.768e-05]
[1731833822003,1.6753,238.76,238.61,6.768e-05]
[1731833822004,23.776884,238.76,238.61,6.768e-05]
[1731833822498,5.8623,238.81,238.61,6.768e-05]
[1731833823809,5.8623,238.81,238.63,23.776884]
[1731833824106,5.8623,238.81,238.66,22.73462914]
[1731833824298,5.8623,238.81,238.66,0.25098]
[1731833824502,1.6749,238.81,238.72,22.48364914]
[1731833824704,1.6738,238.97,238.76,22.48364914]
[1731833824902,1.6738,238.97,238.77,24.027864]
[1731833824903,4.1853,238.93,238.77,24.027864]
[1731833825086,1.6738,238.97,238.82,22.73462914]
[1731833825294,1.6738,238.97,238.84,0.25098]
[1731833826112,4.1842,239.0,238.84,0.25098]
[1731833826610,0.25098,238.97,238.61,4.19076768]
[1731833826812,20.0,238.94,238.67,13.2831]
[1731833827107,24.027864,238.91,238.67,13.2831]
[1731833827336,20.0,238.9,238.67,13.2831]
[1731833827499,20.0,238.9,238.68,22.48364914]
[1731833827706,1.6744,238.89,238.68,26.67314914]
[1731833827895,1.6744,238.89,238.68,4.1895]
[1731833828500,5.8604,238.89,238.7,24.027864]
[1731833828704,1.6744,238.89,238.72,24.027864]
[1731833829527,1.6744,238.89,238.7,24.027864]
[1731833829693,20.0,238.94,238.7,24.027864]
[1731833830012,23.776884,238.89,238.68,10.4742]
[1731833830401,4.1858,238.9,238.68,14.6639]
[1731833831217,4.1858,238.9,238.7,23.776884]
[1731833831393,4.1858,238.9,238.71,0.25098]
[1731833831716,4.1858,238.9,238.75,0.12549]
[1731833831920,1.6742,238.91,238.76,31.5405]
[1731833832096,1.6742,238.91,238.77,24.027864]
[1731833832603,1.6742,238.91,238.78,22.48364914]
[1731833832914,1.6742,238.91,238.79,24.027864]
[1731833833706,6.52352711,239.06,238.79,28.215464]
[1731833833707,1.6737,238.98,238.79,28.215464]
[1731833833904,1.6737,238.98,238.79,38.684864]
[1731833834634,1.6737,238.98,238.88,0.25098]
[1731833834797,1.6737,238.98,238.88,24.027864]
[1731833834997,14.88702711,239.14,238.9,44.027864]
[1731833834998,4.1825,239.09,238.9,44.027864]
[1731833835213,4.1825,239.09,238.92,24.027864]
[1731833835393,4.1825,239.09,238.9,24.027864]
[1731833836293,4.1825,239.09,238.89,0.25098]
[1731833836497,4.1825,239.09,239.0,20.0]
[1731833836703,4.1825,239.09,238.89,0.25098]
[1731833839213,24.027864,239.08,238.89,0.25098]
[1731833839420,4.1825,239.09,238.84,13.0926]
[1731833839421,20.0,239.05,238.84,13.0926]
[1731833839602,20.0,239.03,238.84,13.0926]
[1731833840105,23.776884,239.04,238.84,13.0926]
[1731833840503,34.224,239.03,238.84,13.0926]
[1731833840704,34.224,239.03,238.85,23.776884]
[1731833841401,34.224,239.03,238.86,0.12549]
[1731833841718,34.224,239.03,238.86,0.25098]
[1731833842221,20.0,239.01,238.79,10.4692]
[1731833842520,20.0,239.01,238.79,14.6569]
[1731833843111,20.0,239.01,238.79,10.4692]
[1731833843532,20.0,239.01,238.79,14.6569]
[1731833843726,20.0,239.01,238.8,0.12549]
[1731833844031,5.8577,239.0,238.8,24.027864]
[1731833844330,33.1283,238.99,238.78,0.25098]
[1731833844801,33.1283,238.99,238.77,23.776884]
[1731833845002,33.1283,238.99,238.76,44.6331]
[1731833845003,23.776884,238.96,238.76,44.6331]
[1731833845198,20.0,238.95,238.76,44.6331]
[1731833845402,20.0,238.95,238.7,4.1892]
[1731833845403,20.0,238.93,238.7,4.1892]
[1731833846199,20.0,238.91,238.7,4.1892]
[1731833846421,20.0,238.91,238.69,13.1309]
[1731833846601,14.2307,238.92,238.68,36.8168]
[1731833846602,20.0,238.89,238.68,32.6272]
[1731833846798,24.027864,238.9,238.68,32.6272]
[1731833847020,0.25098,238.9,238.68,32.6272]
[1731833847820,0.25098,238.9,238.69,23.776884]
[1731833848014,5.8604,238.89,238.69,23.776884]
[1731833848400,23.776884,238.88,238.69,23.776884]
[1731833849306,23.776884,238.88,238.7,0.25098]
[1731833849919,5.8608,238.87,238.7,0.25098]
[1731833850716,14.2335,238.87,238.7,0.25098]
[1731833851438,23.776884,238.86,238.7,0.25098]
[1731833851929,23.776884,238.86,238.61,22.48371682]
[1731833851930,23.776884,238.82,238.61,6.768e-05]
[1731833852312,31.0099,238.84,238.61,4.19086768]
[1731833852508,31.0099,238.84,238.62,23.776884]
[1731833852903,23.776884,238.83,238.63,0.12549]
[1731833853111,12.387,238.85,238.65,22.48364914]
[1731833853429,1.6747,238.84,238.7,24.027864]
[1731833854732,5.8616,238.84,238.7,24.027864]
[1731833855413,16.7454,238.87,238.7,24.027864]
[1731833856925,16.7454,238.87,238.7,0.25098]
[1731833857607,5.8598,238.91,238.72,0.12549]
[1731833857828,5.8598,238.91,238.74,24.027864]
[1731833858529,5.8598,238.91,238.73,0.25098]
[1731833858719,5.8598,238.91,238.73,4.43968]
[1731833858917,1.6742,238.91,238.78,0.12549]
[1731833859438,1.6742,238.91,238.78,24.027864]
[1731833860132,4.1848,238.96,238.8,24.027864]
[1731833861332,1.6737,238.99,238.83,22.48364914]
[1731833861545,5.8579,238.99,238.84,24.027864]
[1731833862033,14.2218,239.07,238.84,24.027864]
[1731833862551,20.09367462,239.06,238.75,12.4182]
[1731833862836,20.0,239.04,238.75,16.6065]
[1731833863033,20.0,239.02,238.75,16.6065]
[1731833863221,6.5500985,239.06,238.75,16.6065]
[1731833863222,23.776884,238.99,238.75,27.0777]
[1731833863822,23.776884,238.99,238.76,24.027864]
[1731833864248,14.227,238.98,238.76,24.027864]
[1731833864755,23.776884,238.97,238.76,24.027864]
[1731833865244,0.25098,238.96,238.75,12.4182]
[1731833865532,20.25098,238.92,238.69,12.4182]
[1731833865741,23.776884,238.91,238.69,12.4182]
[1731833866039,24.027864,238.89,238.64,10.4757]
[1731833866334,23.776884,238.87,238.64,10.4757]
[1731833866838,23.776884,238.87,238.64,14.6661]
[1731833867219,23.776884,238.87,238.65,24.027864]
[1731833867820,5.8611,238.86,238.65,28.217964]
[1731833868138,5.8611,238.86,238.67,24.027864]
[1731833869149,8.3731,238.86,238.67,28.217664]
[1731833870148,8.3731,238.86,238.69,22.48364914]
[1731833870315,8.3724,238.88,238.7,24.027864]
[1731833870916,5.8597,238.92,238.67,14.6645]
[1731833870917,5.8597,238.92,238.72,24.027864]
[1731833871120,5.8597,238.92,238.74,24.027864]
[1731833876649,5.8597,238.92,238.67,8.24775944]
[1731833876650,23.776884,238.91,238.66,32.90089672]
[1731833877135,14.2307,238.92,238.68,22.42589672]
[1731833877544,23.776884,238.91,238.73,6.768e-05]
[1731833877847,14.2318,238.9,238.73,6.768e-05]
[1731833880232,12.5575,238.9,238.73,6.768e-05]
[1731833884934,12.5575,238.9,238.74,0.12549]
[1731833885146,4.1858,238.9,238.74,0.25098]
[1731833885453,4.1858,238.9,238.76,0.25098]
[1731833886233,4.1858,238.9,238.77,23.776884]
[1731833886444,4.1858,238.9,238.78,0.25098]
[1731833888758,20.0,238.89,238.78,0.25098]
[1731833889730,5.8606,238.88,238.78,0.25098]
[1731833889955,20.0,238.87,238.78,0.25098]
[1731833890645,20.0,238.87,238.73,6.768e-05]
[1731833891440,20.0,238.85,238.73,6.768e-05]
[1731833891844,5.8616,238.84,238.73,6.768e-05]
[1731833892237,20.0,238.83,238.73,6.768e-05]
[1731833893070,4.1872,238.82,238.73,6.768e-05]
[1731833895335,20.0,238.81,238.73,6.768e-05]
[1731833895542,1.6749,238.82,238.73,6.768e-05]
[1731833896862,4.1871,238.83,238.73,6.768e-05]
[1731833897050,21.6746,238.85,238.73,6.768e-05]
[1731833898461,25.8613,238.85,238.73,6.768e-05]
[1731833899046,34.2347,238.85,238.73,6.768e-05]
[1731833901139,23.776884,238.84,238.73,6.768e-05]
[1731833901342,20.0,238.83,238.73,6.768e-05]
[1731833901579,26.52352711,238.83,238.73,6.768e-05]
[1731833901747,6.52352711,238.82,238.73,6.768e-05]
[1731833902070,26.52352711,238.81,238.73,6.768e-05]
[1731833902247,20.0,238.78,238.73,6.768e-05]
[1731833903349,1.6752,238.77,238.73,6.768e-05]
[1731833907565,4.1879,238.79,238.73,6.768e-05]
[1731833911367,24.1879,238.79,238.73,6.768e-05]
[1731833911665,30.71142711,238.79,238.73,6.768e-05]
[1731833911868,20.0,238.77,238.73,6.768e-05]
[1731833913364,1.6753,238.76,238.73,6.768e-05]
[1731833916272,5.863,238.79,238.73,6.768e-05]
[1731833917172,4.1879,238.79,238.73,6.768e-05]
[1731833918076,20.0,238.77,238.73,6.768e-05]
[1731833918284,20.0,238.77,238.57,2.28075145]
[1731833918975,26.52352711,238.77,238.57,2.28075145]
[1731833919176,14.2402,238.76,238.58,23.902374]
[1731833919389,20.0,238.75,238.58,23.902374]
[1731833919857,20.0,238.75,238.58,23.776884]
[1731833921160,14.2413,238.74,238.59,0.25098]
[1731833922765,1.6754,238.74,238.62,24.027864]
[1731833922975,1.6754,238.74,238.66,0.25098]
[1731833923159,13.05708792,238.86,238.66,0.25098]
[1731833923160,5.8616,238.84,238.67,20.0]
[1731833923366,5.8616,238.84,238.68,24.027864]
[1731833923669,14.2354,238.84,238.68,0.25098]
[1731833923980,14.2354,238.84,238.69,0.25098]
[1731833924788,14.2354,238.84,238.68,0.25098]
[1731833924957,12.5607,238.84,238.68,0.25098]
[1731833925385,12.5607,238.84,238.66,0.25098]
[1731833925561,12.5607,238.84,238.66,24.027864]
[1731833926173,12.5607,238.84,238.68,24.027864]
[1731833929161,12.5607,238.84,238.65,42.5652]
[1731833929784,12.5607,238.84,238.66,4.19]
[1731833929968,12.5607,238.84,238.66,14.6651]
[1731833930669,12.5607,238.84,238.67,44.027864]
[1731833930870,12.5607,238.84,238.69,0.25098]
[1731833931068,12.5607,238.84,238.69,24.027864]
[1731833931568,1.6746,238.86,238.71,38.04678081]
[1731833932410,4.186,238.89,238.71,38.04678081]
[1731833932601,4.186,238.89,238.71,42.23578081]
[1731833932772,4.186,238.89,238.71,28.216864]
[1731833933287,4.186,238.89,238.71,24.027864]
[1731833934194,24.186,238.89,238.63,14.01703448]
[1731833934372,20.0,238.87,238.64,4.1903]
[1731833934566,14.2342,238.86,238.65,57.2308]
[1731833935567,14.2342,238.86,238.68,0.12549]
[1731833935769,14.2342,238.86,238.69,0.12549]
[1731833936791,14.2342,238.86,238.65,57.2308]
[1731833936993,14.2342,238.86,238.65,53.0407]
[1731833937171,14.2342,238.86,238.65,57.2309]
[1731833937876,14.2342,238.86,238.66,24.027864]
[1731833938278,20.75772711,238.86,238.66,24.027864]
[1731833939593,26.52352711,238.85,238.66,24.027864]
[1731833939973,26.52352711,238.85,238.65,30.0526]
[1731833939974,43.776884,238.83,238.65,30.0526]
[1731833940180,26.52352711,238.81,238.6,12.5036]
[1731833940499,6.52352711,238.8,238.6,12.5036]
[1731833940678,26.52352711,238.79,238.59,2.28056026]
[1731833940874,20.0,238.77,238.59,2.28056026]
[1731833941076,6.52352711,238.76,238.59,2.28056026]
[1731833941277,40.76412711,238.75,238.56,12.5036]
[1731833942300,6.52352711,238.74,238.56,12.5036]
[1731833942485,5.8643,238.73,238.57,24.027864]
[1731833945100,5.8643,238.73,238.57,28.219364]
[1731833945279,5.8643,238.73,238.56,12.5036]
[1731833945485,33.16357462,238.66,238.4,33.267]
[1731833945682,6.52352711,238.56,238.35,33.267]
[1731833945879,6.52352711,238.56,238.26,22.43723742]
[1731833945880,6.52352711,238.53,238.28,33.267]
[1731833946098,6.52352711,238.5,238.28,33.267]
[1731833946404,26.52352711,238.47,238.28,33.267]
[1731833946585,26.52352711,238.47,238.26,12.1052]
[1731833946586,20.0,238.45,238.26,12.1052]
[1731833946779,20.0,238.45,238.15,10.4975]
[1731833946780,26.52352711,238.43,238.15,10.4975]
[1731833947100,20.0,238.41,238.15,10.4975]
[1731833947696,20.0,238.43,238.15,10.4975]
[1731833947913,43.776884,238.41,238.15,10.4975]
[1731833948205,43.776884,238.41,238.09,45.3722]
[1731833948206,20.0,238.37,238.09,45.3722]
[1731833948501,20.0,238.37,238.09,49.5722]
[1731833948678,20.0,238.37,238.1,0.1]
[1731833948874,20.0,238.41,238.14,10.4978]
[1731833949084,20.0,238.39,238.14,10.4978]
[1731833949674,14.2604,238.42,238.14,10.4978]
[1731833949675,20.0,238.41,238.14,10.4978]
[1731833949903,1.6778,238.4,238.17,4.1986]
[1731833950499,20.0,238.39,238.17,4.1986]
[1731833950817,20.0,238.39,238.19,0.25098]
[1731833951095,20.0,238.39,238.19,24.027864]
[1731833951606,20.0,238.39,238.18,0.4777192]
[1731833951809,20.0,238.37,238.18,0.4777192]
[1731833951986,23.776884,238.36,238.18,0.4777192]
[1731833952303,20.0,238.35,238.18,0.4777192]
[1731833953205,14.2627,238.38,238.18,0.4777192]
[1731833953703,14.2627,238.38,238.19,0.25098]
[1731833954009,12.5848,238.38,238.18,0.4777192]
[1731833954220,23.776884,238.37,238.18,0.4777192]
[1731833954504,20.0,238.36,238.18,0.4777192]
[1731833954703,20.0,238.37,238.18,0.4777192]
[1731833954932,20.0,238.35,238.18,0.4777192]
[1731833955106,0.09367462,238.32,238.18,0.4777192]
[1731833955315,23.776884,238.29,238.18,0.4777192]
[1731833955611,23.776884,238.25,238.18,0.4777192]
[1731833955810,20.0,238.24,238.18,0.4777192]
[1731833955986,1.679,238.23,238.18,0.4777192]
[1731833956602,20.0,238.21,238.18,0.4777192]
[1731833957008,1.6792,238.2,238.18,0.4777192]
[1731833958914,1.679,238.23,238.18,0.4777192]
[1731833959217,1.679,238.23,238.12,15.0]
[1731833959510,5.8766,238.23,238.13,0.12549]
[1731833960216,5.8766,238.23,238.13,0.25098]
[1731833960506,5.8766,238.23,238.13,24.027864]
[1731833961402,20.0,238.22,238.12,15.0]
[1731833962588,14.2718,238.23,238.13,24.027864]
[1731833962589,5.8766,238.23,238.13,24.027864]
[1731833963212,20.0,238.22,238.12,15.0]
[1731833963722,14.2718,238.23,238.12,15.0]
[1731833963915,5.8766,238.23,238.12,15.0]
[1731833964093,1.679,238.23,238.12,15.0]
[1731833964595,8.3939,238.27,238.13,24.027864]
[1731833966092,20.0,238.26,238.13,24.027864]
[1731833967000,5.8761,238.25,238.13,24.027864]
[1731833968016,1.6789,238.25,238.15,24.027864]
[1731833968522,5.8761,238.25,238.15,23.902374]
[1731833968911,8.3931,238.3,238.15,23.902374]
[1731833969114,20.0,238.29,238.14,44.1386]
[1731833969301,20.0,238.29,238.12,15.0]
[1731833969613,20.0,238.27,238.12,15.0]
[1731833969991,23.776884,238.26,238.12,15.0]
[1731833970197,20.0,238.25,238.12,15.0]
[1731833971092,20.0,238.23,238.12,15.0]
[1731833971522,20.0,238.21,238.12,15.0]
[1731833972799,20.0,238.18,238.12,15.0]
[1731833973117,1.6794,238.17,238.12,15.0]
[1731833973694,1.6794,238.17,238.13,0.25098]
[1731833974605,1.6794,238.17,238.12,15.0]
[1731833976017,30.0,238.16,238.12,8.48638982]
[1731833977111,1.6796,238.15,238.12,8.48638982]
[1731833979621,1.6796,238.15,238.12,3.46760988]
[1731833980917,1.6796,238.15,238.12,9.88e-06]
[1731833981123,0.3220015,238.12,238.05,0.25098]
[1731833981330,0.3220015,238.12,238.04,32.0928]
[1731833982721,1.6798,238.11,238.05,0.25098]
[1731833983741,5.8795,238.11,238.05,0.25098]
[1731833983927,5.8795,238.11,237.94,0.4777192]
[1731833983928,20.0,238.1,237.94,0.4777192]
[1731833984222,20.0,238.08,237.94,0.4777192]
[1731833985203,20.0,238.06,237.76,8.48978904]
[1731833985403,20.0,238.06,237.78,12.5635]
[1731833985823,20.0,238.06,237.78,12.6635]
[1731833986026,4.4107,238.05,237.8,0.1]
[1731833986223,20.0,238.04,237.78,12.5635]
[1731833986729,20.0,238.04,237.79,20.0]
[1731833986908,20.0,238.04,237.8,23.776884]
[1731833987111,20.0,238.04,237.79,20.0]
[1731833987112,20.0,238.02,237.82,23.776884]
[1731833987324,30.0,238.03,237.82,23.776884]
[1731833987527,10.7118,238.05,237.82,23.776884]
[1731833987528,20.0,238.04,237.82,23.776884]
[1731833987831,20.0,238.04,237.83,0.25098]
[1731833988130,4.4111,238.03,237.83,0.25098]
[1731833988435,10.62880874,238.03,237.83,20.25098]
[1731833988749,10.62880874,238.03,237.81,31.104]
[1731833988750,4.32710874,238.03,237.88,0.1]
[1731833988916,6.2996,238.11,237.87,20.25098]
[1731833988917,3.1501,238.09,238.07,158.12369126]
[1731833989118,6.2996,238.11,237.9,24.027864]
[1731833990033,6.2998,238.1,237.9,24.027864]
[1731833990335,6.2998,238.1,237.92,24.027864]
[1731833991230,6.2996,238.11,237.92,24.127864]
[1731833992415,6.2996,238.11,237.92,24.027864]
[1731833993534,20.0,238.1,237.91,12.7564]
[1731833994235,4.41,238.09,237.91,12.7564]
[1731833994819,4.41,238.09,237.92,24.027864]
[1731833995721,20.0,238.08,237.92,24.027864]
[1731833995927,4.4104,238.07,237.92,24.027864]
[1731833997426,10.711,238.07,237.92,24.027864]
[1731833997936,9.4509,238.07,237.92,24.027864]
[1731833998240,20.0,238.06,237.91,12.7564]
[1731833998424,20.0,238.03,237.89,31.0266]
[1731833998925,33.2477,238.03,237.8,13.0994]
[1731833999133,33.2477,238.03,237.77,30.7747]
[1731833999134,20.0,238.01,237.77,30.7747]
[1731833999318,20.0,237.99,237.77,30.7747]
[1731833999523,20.0,237.96,237.73,13.0994]
[1731833999957,10.7164,237.95,237.73,13.0994]
[1731834000142,26.52352711,237.94,237.73,13.0994]
[1731834000441,20.0,237.91,237.7,0.4777192]
[1731834001534,20.0,237.87,237.7,0.4777192]
[1731834001719,30.0,237.88,237.71,43.8741]
[1731834001928,4.414,237.87,237.71,43.8741]
[1731834002620,4.414,237.87,237.7,0.4777192]
[1731834002621,30.2564,237.86,237.7,0.4777192]
[1731834003029,20.0,237.85,237.7,0.4777192]
[1731834003922,4.4146,237.84,237.7,0.4777192]
[1731834004339,20.0,237.83,237.7,0.4777192]
[1731834005122,20.0,237.75,237.7,1.92e-05]
[1731834005345,20.0,237.73,237.7,1.92e-05]
[1731834006147,1.2619,237.72,237.7,1.92e-05]
[1731834008242,1.2618,237.75,237.7,1.92e-05]
[1731834009651,45.5399,237.74,237.7,1.92e-05]
[1731834009845,13.0745,237.74,237.7,1.92e-05]
[1731834010033,1.2618,237.75,237.7,1.92e-05]
[1731834012250,3.1544,237.76,237.7,1.92e-05]
[1731834013552,1.2616,237.79,237.7,1.92e-05]
[1731834013755,16.37953592,237.86,237.85,159.3]
[1731834013934,11.2612,237.86,237.7,1.92e-05]
[1731834014137,20.7205,237.86,237.7,1.92e-05]
[1731834015333,14.4143,237.86,237.71,0.1]
[1731834015553,11.2612,237.86,237.73,0.1]
[1731834015743,11.2612,237.86,237.74,0.12549]
[1731834015942,11.2612,237.86,237.74,0.25098]
[1731834016637,11.2612,237.86,237.72,0.25098]
[1731834016839,11.2612,237.86,237.73,0.1]
[1731834017935,11.2612,237.86,237.76,0.35098]
[1731834018264,11.2612,237.86,237.78,0.25098]
[1731834018936,11.2612,237.86,237.78,0.35098]
[1731834019651,11.2612,237.86,237.8,0.25098]
[1731834020253,3.1523,237.92,237.91,148.16429]
[1731834020462,20.0,237.98,237.91,148.16429]
[1731834020463,20.0,237.98,237.91,0.12549]
[1731834021461,4.4122,237.97,237.92,0.25098]
[1731834022657,3.1516,237.97,237.92,0.25098]
[1731834024362,3.1516,237.97,237.79,32.2736]
[1731834024841,12.6054,237.99,237.79,32.2736]
[1731834025157,0.1,237.96,237.66,0.1]
[1731834025358,33.0726,237.94,237.71,45.164]
[1731834026154,0.1,237.91,237.63,12.8904]
[1731834026361,242.66400816,237.94,237.64,0.1]
[1731834026739,1.2608,237.93,237.64,0.1]
[1731834026967,10.7172,237.93,237.64,0.1]
[1731834027137,20.0,237.92,237.64,0.1]
[1731834027541,20.0,237.92,237.66,0.1]
[1731834027738,20.0,237.92,237.66,0.35098]
[1731834028163,20.0,237.92,237.65,0.1]
[1731834028164,17.0215,237.93,237.69,0.1]
[1731834028354,17.0215,237.93,237.72,0.1]
[1731834028554,17.0215,237.93,237.73,0.35098]
[1731834028758,209.49140816,238.03,237.73,0.35098]
[1731834028759,12.7836,238.01,237.77,0.25098]
[1731834029063,4.4117,238.0,237.77,0.25098]
[1731834029568,1.2605,238.0,237.91,0.12549]
[1731834029760,12.7836,238.12,237.91,0.22549]
[1731834029962,4.4097,238.11,237.92,0.12549]
[1731834030349,4.4097,238.11,237.93,0.12549]
[1731834030547,4.4097,238.11,237.93,0.25098]
[1731834031051,24.4097,238.11,237.93,0.25098]
[1731834031477,4.4097,238.11,237.93,0.25098]
[1731834031765,4.4097,238.11,237.9,31.9202]
[1731834031766,1.2599,238.11,237.97,20.25098]
[1731834031963,1.2599,238.11,237.99,0.25098]
[1731834032772,12.7836,238.26,237.99,0.12549]
[1731834032958,4.407,238.25,237.98,0.25098]
[1731834033160,24.407,238.25,237.98,0.25098]
[1731834034049,24.4072,238.24,237.99,12.6]
[1731834034280,24.4072,238.24,238.0,0.25098]
[1731834034586,4.4072,238.24,238.0,0.25098]
[1731834034751,6.2969,238.22,238.0,0.25098]
[1731834034951,4.408,238.2,238.01,30.3615]
[1731834035156,4.408,238.2,238.02,0.25098]
[1731834035470,4.408,238.2,238.04,0.1]
[1731834035657,1.2594,238.2,238.05,0.25098]
[1731834036055,1.2594,238.2,238.07,0.25098]
[1731834036258,1.2594,238.2,238.08,12.6]
[1731834036452,1.2594,238.2,238.09,0.25098]
[1731834036647,3.1478,238.26,238.24,158.0406]
[1731834036865,6.2955,238.27,238.09,0.25098]
[1731834037752,3.1479,238.25,238.09,0.25098]
[1731834038960,4.407,238.25,238.09,0.25098]
[1731834040070,4.407,238.25,238.01,42.9615]
[1731834040071,20.0,238.22,238.01,42.9615]
[1731834040375,20.0,238.22,238.03,0.1]
[1731834040876,10.0,238.27,238.01,42.9615]
[1731834040877,3.1484,238.21,238.01,42.9615]
[1731834042084,3.1484,238.21,238.02,0.12549]
[1731834042372,3.1484,238.21,238.02,0.25098]
[1731834043074,23.1484,238.21,238.01,30.3615]
[1731834043276,20.0,238.19,237.93,0.1]
[1731834043962,23.1484,238.21,237.93,0.1]
[1731834044260,23.1484,238.21,237.92,22.53723742]
[1731834044455,23.1484,238.21,237.93,0.12549]
[1731834044858,23.1484,238.21,237.93,0.25098]
[1731834045071,20.0,238.2,237.93,0.25098]
[1731834047078,10.7055,238.19,237.93,0.25098]
[1731834047271,20.0,238.18,237.93,0.25098]
[1731834048289,10.7066,238.17,237.93,0.25098]
[1731834048667,20.0,238.16,237.93,0.25098]
[1731834049465,20.0,238.14,237.93,0.25098]
[1731834050176,20.0,238.14,237.95,0.1]
[1731834050390,20.0,238.14,237.95,0.22549]
[1731834050680,20.0,238.14,237.96,0.25098]
[1731834051584,4.4093,238.13,237.96,0.25098]
[1731834052783,10.0,238.2,237.96,0.25098]
[1731834052784,10.0,238.2,238.19,155.01689]
[1731834052965,10.0,238.2,238.19,0.25098]
[1731834053362,10.0,238.2,238.19,0.12549]
[1731834053885,11.2594,238.2,238.19,0.12549]
[1731834055277,31.2594,238.2,238.19,0.12549]
[1731834057667,20.0,238.19,238.04,0.25098]
[1731834057869,20.0,238.19,238.03,0.12549]
[1731834058384,14.408,238.2,238.03,0.12549]
[1731834058593,14.408,238.2,238.05,0.12549]
[1731834060064,14.408,238.2,238.05,0.25098]
[1731834061086,14.408,238.2,238.07,0.12549]
[1731834061463,14.408,238.2,238.05,10.5019]
[1731834061664,20.0,238.19,238.01,4.2013]
[1731834061887,20.0,238.19,237.99,14.7059]
[1731834062095,4.4087,238.16,237.99,14.7059]
[1731834062291,0.1,238.13,237.94,14.7093]
[1731834062773,0.2,238.13,237.94,10.5067]
[1731834062963,0.1,238.13,237.94,10.5067]
[1731834063170,20.2,238.15,237.94,14.7094]
[1731834063363,0.1,238.13,237.94,14.7094]
[1731834063799,20.2,238.15,237.94,14.7094]
[1731834064204,1.2597,238.14,237.96,20.0]
[1731834064506,1.2597,238.14,238.0,20.12549]
[1731834064673,1.2597,238.14,237.95,0.12549]
[1731834065075,0.2,238.1,237.89,10.5088]
[1731834066091,0.1,238.1,237.89,10.5088]
[1731834066279,4.41,238.09,237.9,0.12549]
[1731834067172,0.1,238.07,237.89,10.5088]
[1731834067379,0.1,238.05,237.87,4.197]
[1731834067596,0.1,238.02,237.87,4.197]
[1731834067878,0.2,238.05,237.79,14.7186]
[1731834068091,0.2,238.05,237.81,22.43723742]